Workbook

Sheet Arkusz1
A1: OGÓLNOPOLSKA KAMPANIA WSPIERANIA SPRAWNOŚCI FIZYCZNEJ 100-Testów Coopera dla Niepodległej
A2: TEST COOPERA DLA WSZYSTKICH JESIEŃ 2020
A3: PROGRAM WSPÓŁFINANSOWANY PRZEZ MINISTERSTWO SPORTU I TURYSTYKI
A4: Miasto: Białystok Stadion BOSiR | F4: Adres i nazwa obiektu: ul. 11 listopada 28
A5: Lp. | B5: Imię | C5: Nazwisko | D5: Płeć | E5: Nr startowy | F5: Wiek | G5: Dystans | H5: Wynik | I5: Szkoła / Uczelnia / Drużyna
D6: K / M | F6: lata | G6: metry
A7: 1 | B7: Patrycja | C7: Fchipich | D7: K | E7: 1 | F7: 21 | G7: 1800 | H7: Bardzo dobrze | I7: PB
A8: =A7+1 -> 2 | B8: Michał | C8: Kortokrewicz | D8: M | E8: 2 | F8: 20 | G8: 2000 | H8: Źle | I8: PB
A9: =A8+1 -> 3 | B9: Joanna | C9: Wróblewska | D9: K | E9: 3 | F9: 20 | G9: 1800 | H9: Średnio | I9: PB
A10: =A9+1 -> 4 | B10: Karol | C10: Talecki | D10: M | E10: 4 | F10: 20 | G10: 1600 | H10: Źle | I10: PB
A11: =A10+1 -> 5 | B11: Dominik | C11: Litwinowicz | D11: M | E11: 5 | F11: 20 | G11: 1500 | H11: Bardzo dobrze | I11: PB
A12: =A11+1 -> 6 | B12: Fabian | C12: Kucharczyk | D12: M | E12: 6 | F12: 21 | G12: 1600 | H12: Bardzo dobrze | I12: PB
A13: =A12+1 -> 7 | B13: Błażej | C13: Gliński | D13: M | E13: 7 | F13: 21 | G13: 1800 | H13: Średnio | I13: PB
A14: =A13+1 -> 8 | B14: Wojciech | C14: Łapiński | D14: M | E14: 8 | F14: 20 | G14: 2250 | H14: Bardzo dobrze | I14: PB
A15: =A14+1 -> 9 | B15: Łukasz | C15: Kondyś | D15: M | E15: 9 | F15: 20 | G15: 1650 | H15: Bardzo dobrze | I15: PB
A16: =A15+1 -> 10 | B16: Marta | C16: Jakimiuk | D16: K | E16: 10 | F16: 19 | G16: 1800 | H16: Bardzo dobrze | I16: PB
A17: =A16+1 -> 11 | B17: Michał | C17: Dzienis | D17: M | E17: 11 | F17: 21 | G17: 2000 | H17: Bardzo dobrze | I17: PB
A18: =A17+1 -> 12 | B18: Aleksandra | C18: Niziołek | D18: K | E18: 12 | F18: 20 | G18: 1600 | H18: Bardzo dobrze | I18: PB
A19: =A18+1 -> 13 | B19: Agata | C19: Maksimuk | D19: K | E19: 13 | F19: 19 | G19: 1600 | H19: Bardzo dobrze | I19: PB
A20: =A19+1 -> 14 | B20: Mateusz | C20: Gieros | D20: M | E20: 14 | F20: 19 | G20: 2650 | H20: Bardzo dobrze | I20: PB
A21: =A20+1 -> 15 | B21: Wiktoria | C21: Mieczkowska | D21: K | E21: 15 | F21: 19 | G21: 2400 | H21: Bardzo dobrze | I21: PB
A22: =A21+1 -> 16 | B22: Katarzyna | C22: Krzywicka | D22: K | E22: 16 | F22: 19 | G22: 1000 | H22: Bardzo dobrze | I22: PB
A23: =A22+1 -> 17 | B23: Damian | C23: Kaczkiewicz | D23: M | E23: 17 | F23: 20 | G23: 2400 | H23: Bardzo dobrze | I23: PB
A24: =A23+1 -> 18 | B24: Michał | C24: Dąbrowski | D24: M | E24: 18 | F24: 21 | G24: 2400 | H24: Bardzo dobrze | I24: PB
A25: =A24+1 -> 19 | B25: Mateusz | C25: Kucejko | D25: M | E25: 19 | F25: 21 | G25: 2000 | H25: Bardzo dobrze | I25: PB
A26: =A25+1 -> 20 | B26: Martyna | C26: Michalurz | D26: K | E26: 20 | F26: 20 | G26: 2000 | H26: Bardzo dobrze | I26: PB
A27: =A26+1 -> 21 | B27: Kamil | C27: Kotewicz | D27: M | E27: 21 | F27: 19 | G27: 2300 | H27: Bardzo dobrze | I27: PB
A28: =A27+1 -> 22 | B28: Dawid | C28: Zamajda | D28: M | E28: 22 | F28: 20 | G28: 1950 | H28: Bardzo dobrze | I28: PB
A29: =A28+1 -> 23 | B29: Zofia | C29: Wołkowycka-Poięga | D29: K | E29: 23 | F29: 20 | G29: 2100 | H29: Bardzo dobrze | I29: PB
A30: =A29+1 -> 24 | B30: Aleksandra | C30: Wróbel | D30: K | E30: 24 | F30: 20 | G30: 1700 | H30: Bardzo dobrze | I30: PB
A31: =A30+1 -> 25 | B31: Julia | C31: Kołoryjska | D31: K | E31: 25 | F31: 20 | G31: 2100 | H31: Bardzo dobrze | I31: PB
A32: =A31+1 -> 26 | B32: Wiktoria | C32: Żylińska | D32: K | E32: 26 | F32: 20 | G32: 2250 | H32: Bardzo dobrze | I32: PB
A33: =A32+1 -> 27 | B33: Panila | C33: Pelukhou | D33: K | E33: 27 | F33: 17 | G33: 2300 | H33: Bardzo dobrze | I33: PB
A34: =A33+1 -> 28 | B34: Małgorzata | C34: Hermanowska | D34: K | E34: 28 | F34: 19 | G34: 1900 | H34: Bardzo dobrze | I34: PB
A35: =A34+1 -> 29 | B35: Adam | C35: Tabulski | D35: M | E35: 29 | F35: 19 | G35: 2000 | H35: Bardzo dobrze | I35: PB
A36: =A35+1 -> 30 | B36: Jakub | C36: Wierzbiński | D36: M | E36: 30 | F36: 19 | G36: 1850 | H36: Bardzo dobrze | I36: PB
A37: =A36+1 -> 31 | B37: Kamila | C37: Borowska | D37: K | E37: 31 | F37: 19 | G37: 1600 | H37: Bardzo dobrze | I37: PB
A38: =A37+1 -> 32 | B38: Gabriela | C38: Guszcza | D38: K | E38: 32 | F38: 20 | G38: 1250 | H38: Bardzo dobrze | I38: PB
A39: =A38+1 -> 33 | B39: Gabriela | C39: Borowska | D39: K | E39: 33 | F39: 20 | G39: 1550 | H39: Bardzo dobrze | I39: PB
A40: =A39+1 -> 34 | B40: Jan | C40: Dobkowski | D40: M | E40: 34 | F40: 18 | G40: 2200 | H40: Bardzo dobrze | I40: PB
A41: =A40+1 -> 35 | B41: Mateusz | C41: Choroszewicz | D41: M | E41: 35 | F41: 20 | G41: 2500 | H41: Bardzo dobrze | I41: PB
A42: =A41+1 -> 36 | B42: Emil | C42: Bielski | D42: M | E42: 36 | F42: 20 | G42: 1750 | H42: Bardzo dobrze | I42: PB
A43: =A42+1 -> 37 | B43: Patryk | C43: Łoś | D43: M | E43: 37 | F43: 20 | G43: 1800 | H43: Bardzo dobrze | I43: PB
A44: =A43+1 -> 38 | B44: Hleb | C44: Tryfanan | D44: M | E44: 38 | F44: 18 | G44: 2200 | H44: Bardzo dobrze | I44: PB
A45: =A44+1 -> 39 | B45: Vadzim | C45: Hayenski | D45: M | E45: 39 | F45: 23 | G45: 2700 | H45: Bardzo dobrze | I45: PB
A46: =A45+1 -> 40 | B46: Kiryl | C46: Zhaliwiakovich | D46: M | E46: 40 | F46: 18 | G46: 2100 | H46: Bardzo dobrze | I46: PB
A47: =A46+1 -> 41 | B47: Paweł | C47: Błażewicz | D47: M | E47: 41 | F47: 21 | G47: 1600 | H47: Bardzo dobrze | I47: PB
A48: =A47+1 -> 42 | B48: Maciej | C48: Adamczyk | D48: M | E48: 42 | F48: 22 | G48: 2000 | H48: Bardzo dobrze | I48: PB
A49: =A48+1 -> 43 | B49: Artur | C49: Bortniczuk | D49: M | E49: 43 | F49: 20 | G49: 1800 | H49: Bardzo dobrze | I49: PB
A50: =A49+1 -> 44 | B50: Kacper | C50: Koda | D50: M | E50: 44 | F50: 19 | G50: 2000 | H50: Bardzo dobrze | I50: PB
A51: =A50+1 -> 45 | B51: Wojciech | C51: Warasiuk | D51: M | E51: 45 | F51: 22 | G51: 1950 | H51: Bardzo dobrze | I51: PB
A52: =A51+1 -> 46 | B52: Hubert | C52: Zagiełło | D52: M | E52: 46 | F52: 19 | G52: 1950 | H52: Bardzo dobrze | I52: PB
A53: =A52+1 -> 47 | B53: Piotr | C53: Domalewski | D53: M | E53: 47 | F53: 22 | G53: 2000 | H53: Bardzo dobrze | I53: PB
A54: =A53+1 -> 48 | B54: Aliansej | C54: Hadutsni | D54: M | E54: 48 | F54: 18 | G54: 2500 | H54: Bardzo dobrze | I54: PB
A55: =A54+1 -> 49 | B55: Żaneta | C55: Lubinska | D55: K | E55: 49 | F55: 21 | G55: 1700 | H55: Bardzo dobrze | I55: PB
A56: =A55+1 -> 50 | B56: Grzegorz | C56: Maliszewski | D56: M | E56: 50 | F56: 21 | G56: 2150 | H56: Bardzo dobrze | I56: PB
A57: =A56+1 -> 51 | B57: Michał | C57: Mańkowski | D57: M | E57: 51 | F57: 21 | G57: 2600 | H57: Bardzo dobrze | I57: PB
A58: =A57+1 -> 52 | B58: Mateusz | C58: Dąbrowski | D58: M | E58: 52 | F58: 21 | G58: 2550 | H58: Bardzo dobrze | I58: PB
A59: =A58+1 -> 53 | B59: Jakub | C59: Grabowski | D59: M | E59: 53 | F59: 21 | G59: 2050 | H59: Bardzo dobrze | I59: PB
A60: =A59+1 -> 54 | B60: Dominik | C60: Jabłoński | D60: M | E60: 54 | F60: 20 | G60: 2200 | H60: Bardzo dobrze | I60: PB
A61: =A60+1 -> 55 | B61: Monika | C61: Mantowska | D61: K | E61: 55 | F61: 20 | G61: 1850 | H61: Bardzo dobrze | I61: PB
A62: =A61+1 -> 56 | B62: Krystian | C62: Vędołowski | D62: M | E62: 56 | F62: 20 | G62: 2400 | H62: Bardzo dobrze | I62: PB
A63: =A62+1 -> 57 | B63: Małgorzata | C63: Vętowski | D63: K | E63: 57 | F63: 20 | G63: 1800 | H63: Bardzo dobrze | I63: PB
A64: =A63+1 -> 58 | B64: Aleksandra | C64: Modzelewska | D64: K | E64: 58 | F64: 21 | G64: 1750 | H64: Bardzo dobrze | I64: PB
A65: =A64+1 -> 59 | B65: Agnieszka | C65: Kozłowska | D65: K | E65: 59 | F65: 21 | G65: 1700 | H65: Bardzo dobrze | I65: PB
A66: =A65+1 -> 60 | B66: Piotr | C66: Orłowski | D66: M | E66: 60 | F66: 20 | G66: 2100 | H66: Bardzo dobrze | I66: PB
A67: =A66+1 -> 61 | B67: Paula | C67: Hippel | D67: K | E67: 61 | F67: 20 | G67: 1800 | H67: Bardzo dobrze | I67: PB
A68: =A67+1 -> 62 | B68: Szymon | C68: Wądołowski | D68: M | E68: 62 | F68: 20 | G68: 2200 | H68: Bardzo dobrze | I68: PB
A69: =A68+1 -> 63 | B69: Paulina | C69: Iwaniuk | D69: K | E69: 63 | F69: 20 | G69: 2350 | H69: Bardzo dobrze | I69: PB
A70: =A69+1 -> 64 | B70: Rafał | C70: Kryński | D70: M | E70: 64 | F70: 21 | G70: 2350 | H70: Bardzo dobrze | I70: PB
A71: =A70+1 -> 65 | B71: Marek | C71: Nartowih | D71: M | E71: 65 | F71: 20 | G71: 1900 | H71: Bardzo dobrze | I71: PB
A72: =A71+1 -> 66 | B72: Mateusz | C72: Głddi | D72: M | E72: 66 | F72: 21 | G72: 2300 | H72: Bardzo dobrze | I72: PB
A73: =A72+1 -> 67 | B73: Ewelina | C73: Sadowska | D73: K | E73: 67 | F73: 20 | G73: 1950 | H73: Bardzo dobrze | I73: PB
A74: =A73+1 -> 68 | B74: Weronika | C74: Sosnowska | D74: K | E74: 68 | F74: 19 | G74: 1500 | H74: Bardzo dobrze | I74: PB
A75: =A74+1 -> 69 | B75: Urszula | C75: Piskurewicz | D75: K | E75: 69 | F75: 19 | G75: 1800 | H75: Bardzo dobrze | I75: PB
A76: =A75+1 -> 70 | B76: Paulina | C76: Szlesińska | D76: K | E76: 70 | F76: 19 | G76: 1600 | H76: Bardzo dobrze | I76: PB
A77: =A76+1 -> 71 | B77: Maja | C77: Orlicka | D77: K | E77: 71 | F77: 19 | G77: 1500 | H77: Bardzo dobrze | I77: PB
A78: =A77+1 -> 72 | B78: Paweł | C78: Tomaszewski | D78: M | E78: 72 | F78: 20 | G78: 1950 | H78: Bardzo dobrze | I78: PB
A79: =A78+1 -> 73 | B79: Szymon | C79: Trzciński | D79: M | E79: 73 | F79: 20 | G79: 2000 | H79: Bardzo dobrze | I79: PB
A80: =A79+1 -> 74 | B80: Magdalena | C80: Szubda | D80: M | E80: 74 | F80: 19 | G80: 1550 | H80: Bardzo dobrze | I80: PB
A81: =A80+1 -> 75 | B81: Urszula | C81: Łukaszuk | D81: K | E81: 75 | F81: 19 | G81: 1500 | H81: Bardzo dobrze | I81: PB
A82: =A81+1 -> 76 | B82: Zuzanna | C82: Potocka | D82: K | E82: 76 | F82: 19 | G82: 1500 | H82: Bardzo dobrze | I82: PB
A83: =A82+1 -> 77 | B83: Wiktoria | C83: Tarlaska | D83: K | E83: 77 | F83: 19 | G83: 1500 | H83: Bardzo dobrze | I83: PB
A84: =A83+1 -> 78 | B84: Telzamieta | C84: Gawrilenko | D84: K | E84: 78 | F84: 18 | G84: 1550 | H84: Bardzo dobrze | I84: PB
A85: =A84+1 -> 79 | B85: Weronika | C85: Zimnoch | D85: K | E85: 79 | F85: 20 | G85: 1550 | H85: Bardzo dobrze | I85: PB
A86: =A85+1 -> 80 | B86: Anna | C86: Szkobodzińska | D86: K | E86: 80 | F86: 19 | G86: 1950 | H86: Bardzo dobrze | I86: PB
A87: =A86+1 -> 81 | B87: Julia | C87: Sabak | D87: K | E87: 81 | F87: 19 | G87: 1750 | H87: Bardzo dobrze | I87: PB
A88: =A87+1 -> 82 | B88: Katarzyna | C88: Pielirniak | D88: K | E88: 82 | F88: 22 | G88: 2100 | H88: Bardzo dobrze | I88: PB
A89: =A88+1 -> 83 | B89: Gabriel | C89: Olszewski | D89: M | E89: 83 | F89: 20 | G89: 1750 | H89: Bardzo dobrze | I89: PB
A90: =A89+1 -> 84 | B90: Kamila | C90: Maciejewska | D90: K | E90: 84 | F90: 21 | G90: 1900 | H90: Bardzo dobrze | I90: PB
A91: =A90+1 -> 85 | B91: Julia | C91: Łuczaj | D91: K | E91: 85 | F91: 20 | G91: 1150 | H91: Bardzo dobrze | I91: PB
A92: =A91+1 -> 86 | B92: Katarzyna | C92: Kulik | D92: K | E92: 86 | F92: 21 | G92: 1650 | H92: Bardzo dobrze | I92: PB
A93: =A92+1 -> 87 | B93: Agata | C93: Karolkiewicz | D93: K | E93: 87 | F93: 20 | G93: 1650 | H93: Bardzo dobrze | I93: PB
A94: =A93+1 -> 88 | B94: Joanna | C94: Kalinowska | D94: K | E94: 88 | F94: 19 | G94: 1150 | H94: Bardzo dobrze | I94: PB
A95: =A94+1 -> 89 | B95: Paulina | C95: Sekścińska | D95: K | E95: 89 | F95: 21 | G95: 1250 | H95: Bardzo dobrze | I95: PB
A96: =A95+1 -> 90 | B96: Lizavieta | C96: Belahryvaya | D96: K | E96: 90 | F96: 18 | G96: 1400 | H96: Bardzo dobrze | I96: PB
A97: =A96+1 -> 91 | B97: Joanna | C97: Bagińska | D97: K | E97: 91 | F97: 23 | G97: 1250 | H97: Bardzo dobrze | I97: PB
A98: =A97+1 -> 92 | B98: Magda | C98: Antonowicz | D98: K | E98: 92 | F98: 23 | G98: 1250 | H98: Bardzo dobrze | I98: PB
A99: =A98+1 -> 93 | B99: Gabriela | C99: Sołowiej | D99: K | E99: 93 | F99: 20 | G99: 1350 | H99: Bardzo dobrze | I99: PB
A100: =A99+1 -> 94 | B100: Magda | C100: Charytoniuk | D100: K | E100: 94 | F100: 20 | G100: 1900 | H100: Bardzo dobrze | I100: PB
A101: =A100+1 -> 95 | B101: Agata | C101: Łudzicz | D101: K | E101: 95 | F101: 20 | G101: 1700 | H101: Bardzo dobrze | I101: PB
A102: =A101+1 -> 96 | B102: Adrianna | C102: Podbielska | D102: K | E102: 96 | F102: 20 | G102: 1350 | H102: Bardzo dobrze | I102: PB
A103: =A102+1 -> 97 | B103: Monika | C103: Gagan | D103: K | E103: 97 | F103: 31 | G103: 1650 | H103: Bardzo dobrze | I103: __
A104: =A103+1 -> 98 | B104: Łukasz | C104: Sagan | D104: M | E104: 98 | F104: 38 | G104: 3200 | H104: Bardzo dobrze | I104: __
A105: =A104+1 -> 99 | B105: Kamil | C105: Chmielewski | D105: M | E105: 99 | F105: 29 | G105: 3200 | H105: Bardzo dobrze | I105: __
A106: =A105+1 -> 100 | B106: Julita | C106: Kasjaniuk | D106: K | E106: 100 | F106: 20 | G106: 2350 | H106: Bardzo dobrze | I106: KU AZS WSWFiT w Białymstoku
A107: =A106+1 -> 101 | B107: Kamil | C107: Korenkawicz | D107: M | E107: 101 | F107: 21 | G107: 3000 | H107: Bardzo dobrze | I107: __
A108: =A107+1 -> 102 | B108: Przemysław | C108: Klejno | D108: M | E108: 102 | F108: 20 | G108: 1950 | H108: Bardzo dobrze | I108: PB
A109: =A108+1 -> 103 | B109: Zbigniew | C109: Wojno | D109: M | E109: 103 | F109: 46 | G109: 2900 | H109: Bardzo dobrze | I109: __
A110: =A109+1 -> 104 | B110: Janusz | C110: Gogol | D110: M | E110: 104 | F110: 54 | G110: 1950 | H110: Bardzo dobrze | I110: __
A111: =A110+1 -> 105 | B111: Mariusz | C111: Gogol | D111: M | E111: 105 | F111: 29 | G111: 2850 | H111: Bardzo dobrze | I111: __
A112: =A111+1 -> 106 | B112: Tomasz | C112: Gogol | D112: M | E112: 106 | F112: 31 | G112: 3000 | H112: Bardzo dobrze | I112: __
A113: =A112+1 -> 107 | B113: Kamil | C113: Janowicz | D113: M | E113: 107 | F113: 31 | G113: 3050 | H113: Bardzo dobrze | I113: __
A114: =A113+1 -> 108 | B114: Władzisław | C114: Chulada | D114: M | E114: 108 | F114: 21 | G114: 2000 | H114: Bardzo dobrze | I114: PB
A115: =A114+1 -> 109 | B115: Natalia | C115: Demczuk | D115: K | E115: 109 | F115: 16 | G115: 2050 | H115: Bardzo dobrze | I115: MKS JUVENIA BIAŁYSTOK
A116: =A115+1 -> 110 | B116: Dmian | C116: Bednorz | D116: M | E116: 110 | F116: 41 | G116: 3300 | H116: Bardzo dobrze | I116: __
A117: =A116+1 -> 111 | B117: Mateusz | C117: Danowski | D117: M | E117: 111 | F117: 21 | G117: 3600 | H117: Bardzo dobrze | I117: UNTS WARSZAWA
A118: =A117+1 -> 112 | B118: Kinga | C118: Danowska-Jadzok | D118: K | E118: 112 | F118: 23 | G118: 2350 | H118: Bardzo dobrze | I118: UMB
A119: =A118+1 -> 113 | B119: Krzysztof | C119: Sieśkiewicz | D119: M | E119: 113 | F119: 47 | G119: 3000 | H119: Bardzo dobrze | I119: __
A120: =A119+1 -> 114 | B120: Joanna | C120: Szczykowska | D120: K | E120: 114 | F120: 29 | G120: 3000 | H120: Bardzo dobrze | I120: MD RUN TRANING
A121: =A120+1 -> 115 | B121: Jacek | C121: Morawski | D121: M | E121: 115 | F121: 51 | G121: 2750 | H121: Bardzo dobrze | I121: MD RUN TRANING
A122: =A121+1 -> 116 | B122: Paweł | C122: Lenkiewicz | D122: M | E122: 116 | F122: 34 | G122: 2950 | H122: Bardzo dobrze | I122: __
A123: =A122+1 -> 117 | B123: Bartosz | C123: Dudek | D123: M | E123: 117 | F123: 28 | G123: 3350 | H123: Bardzo dobrze | I123: MD RUN TRANING
A124: =A123+1 -> 118 | B124: Wojciech | C124: Grocki | D124: M | E124: 118 | F124: 14 | G124: 2800 | H124: Bardzo dobrze | I124: ALOPB
A125: =A124+1 -> 119 | B125: Marta | C125: Czemiel-Miękisz | D125: K | E125: 119 | F125: 42 | G125: 2600 | H125: Bardzo dobrze | I125: __
A126: =A125+1 -> 120 | B126: Tomasz | C126: Gaiński | D126: M | E126: 120 | F126: 40 | G126: 3200 | H126: Bardzo dobrze | I126: 3T BIAŁYSTOK
A127: =A126+1 -> 121 | B127: Robert | C127: Bielawski | D127: M | E127: 121 | F127: 40 | G127: 3200 | H127: Bardzo dobrze | I127: 3T
A128: =A127+1 -> 122 | B128: Katarzyna | C128: Gorczycka | D128: K | E128: 122 | F128: 51 | G128: 2350 | H128: Bardzo dobrze | I128: BBL
A129: =A128+1 -> 123 | B129: Maciej | C129: Korotkiewicz | D129: M | E129: 123 | F129: 46 | G129: 2300 | H129: Bardzo dobrze | I129: BBL
A130: =A129+1 -> 124 | B130: Jakub | C130: Borodziuk | D130: M | E130: 124 | F130: 10 | G130: 2200 | H130: Bardzo dobrze | I130: SP49 Białystok
A131: =A130+1 -> 125 | B131: Szymon | C131: Borodziuk | D131: M | E131: 125 | F131: 32 | G131: 2650 | H131: Bardzo dobrze | I131: PB
A132: =A131+1 -> 126 | B132: Dick | C132: Mendes | D132: M | E132: 126 | F132: 32 | G132: 2350 | H132: Bardzo dobrze | I132: University of Technology
A133: =A132+1 -> 127 | B133: Paweł | C133: Korzeniewski | D133: M | E133: 127 | F133: 32 | G133: 1550 | H133: Bardzo dobrze | I133: 3T BIAŁYSTOK
A134: =A133+1 -> 128 | B134: Patryk | C134: Drężek | D134: M | E134: 128 | F134: 25 | G134: 3900 | H134: Bardzo dobrze | I134: 3T BIAŁYSTOK
A135: =A134+1 -> 129 | B135: Maciej | C135: Walesiuk | D135: M | E135: 129 | F135: 45 | G135: 3300 | H135: Bardzo dobrze | I135: 3T BIAŁYSTOK
A136: =A135+1 -> 130 | B136: Jakub | C136: Perkowski | D136: M | E136: 130 | F136: 21 | G136: 3200 | H136: Bardzo dobrze | I136: 3T BIAŁYSTOK
A137: =A136+1 -> 131 | B137: Adrian | C137: Syty | D137: M | E137: 131 | F137: 27 | G137: 1800 | H137: Bardzo dobrze | I137: UMB
A138: =A137+1 -> 132 | B138: Hubert | C138: Kowalczuk | D138: M | E138: 132 | F138: 20 | G138: 1550 | H138: Bardzo dobrze | I138: PB
A139: =A138+1 -> 133 | B139: Hubert | C139: Kulesza | D139: M | E139: 133 | F139: 20 | G139: 3350 | H139: Bardzo dobrze | I139: PB
A140: =A139+1 -> 134 | B140: Justyna | C140: Utko | D140: K | E140: 134 | F140: 36 | G140: 2750 | H140: Bardzo dobrze | I140: 3T BIAŁYSTOK
A141: =A140+1 -> 135 | B141: Monika | C141: Waleszuk | D141: K | E141: 135 | F141: 41 | G141: 3100 | H141: Bardzo dobrze | I141: 3T BIAŁYSTOK
A142: =A141+1 -> 136 | B142: Maciej | C142: Sielanka | D142: M | E142: 136 | F142: 37 | G142: 2800 | H142: Bardzo dobrze | I142: ZASPANE PIŻAMKI
A143: =A142+1 -> 137 | B143: Magdalena | C143: Zbroja-Hamanowicz | D143: K | E143: 137 | F143: 46 | G143: 2259 | H143: Bardzo dobrze | I143: BBL
A144: =A143+1 -> 138 | B144: Ewa | C144: Androsiuk-Katarska | D144: K | E144: 138 | F144: 37 | G144: 2200 | H144: Bardzo dobrze | I144: BBL
A145: =A144+1 -> 139 | B145: Elżbieta | C145: Wiszenko | D145: K | E145: 139 | F145: 62 | G145: 1750 | H145: Bardzo dobrze | I145: BBL
A146: =A145+1 -> 140 | B146: Agnieszka | C146: Dąbrowska | D146: K | E146: 140 | F146: 35 | G146: 1250 | H146: Bardzo dobrze | I146: BBL
A147: =A146+1 -> 141 | B147: Marcin | C147: Zajączkowski | D147: M | E147: 141 | F147: 35 | G147: 2550 | H147: Bardzo dobrze | I147: BBL
A148: =A147+1 -> 142 | B148: Katarzyna | C148: Kozłowska | D148: K | E148: 142 | F148: 46 | G148: 1800 | H148: Bardzo dobrze | I148: BBL
A149: =A148+1 -> 143 | B149: Ewa | C149: Białokozowicz | D149: K | E149: 143 | F149: 33 | G149: 2250 | H149: Bardzo dobrze | I149: BBL
A150: =A149+1 -> 144 | B150: Marcin | C150: Kupryciuk | D150: M | E150: 144 | F150: 36 | G150: 2500 | H150: Bardzo dobrze | I150: BBL
A151: =A150+1 -> 145 | B151: Janna | C151: Dojnikowska-Bahajto | D151: M | E151: 145 | F151: 40 | G151: 1900 | H151: Bardzo dobrze | I151: BBL
A152: =A151+1 -> 146 | B152: Marcin | C152: Bahojko | D152: M | E152: 146 | F152: 40 | G152: 2700 | H152: Bardzo dobrze | I152: BBL
A153: =A152+1 -> 147 | B153: Emilia | C153: Gołaszewska | D153: K | E153: 147 | F153: 42 | G153: 2450 | H153: Bardzo dobrze | I153: MD RUN TRANING
A154: =A153+1 -> 148 | B154: Krzysztof | C154: Falkowski | D154: M | E154: 148 | F154: 28 | G154: 2500 | H154: Bardzo dobrze | I154: __
A155: =A154+1 -> 149 | B155: Marcin | C155: Stefanioh | D155: M | E155: 149 | F155: 22 | G155: 2100 | H155: Bardzo dobrze | I155: PB
A156: =A155+1 -> 150 | B156: Antoni | C156: Dziemańczyk | D156: M | E156: 150 | F156: 13 | G156: 2900 | H156: Bardzo dobrze | I156: SSP nr3 BTO w Białymstoku
A157: =A156+1 -> 151 | B157: Franciszek | C157: Dziemańczyk | D157: M | E157: 151 | F157: 7 | G157: 1900 | H157: Bardzo dobrze | I157: SP9
A158: =A157+1 -> 152 | B158: Julian | C158: Dziemańczyk | D158: M | E158: 152 | F158: 8 | G158: 1850 | H158: Bardzo dobrze | I158: SP9
A159: =A158+1 -> 153 | B159: Jarosław | C159: Kazberek | D159: M | E159: 153 | F159: 56 | G159: 3100 | H159: Bardzo dobrze | I159: __
A160: =A159+1 -> 154 | B160: Karol | C160: Berent | D160: M | E160: 154 | F160: 27 | G160: 3050 | H160: Bardzo dobrze | I160: __
A161: =A160+1 -> 155 | B161: Jalanch | C161: Zench | D161: M | E161: 155 | F161: 64 | G161: 1900 | H161: Bardzo dobrze | I161: PB
A162: =A161+1 -> 156 | B162: Kamil | C162: Zapert | D162: M | E162: 156 | F162: 20 | G162: 1300 | H162: Bardzo dobrze | I162: PB
A163: =A162+1 -> 157 | B163: Emilia | C163: Półtorzycka | D163: K | E163: 157 | F163: 20 | G163: 1300 | H163: Bardzo dobrze | I163: PB
A164: =A163+1 -> 158 | B164: Patrycja | C164: Kitlas | D164: K | E164: 158 | F164: 19 | G164: 1800 | H164: Bardzo dobrze | I164: PB
A165: =A164+1 -> 159 | B165: Yaraslaw | C165: Holubowski | D165: M | E165: 159 | F165: 19 | G165: 2150 | H165: Bardzo dobrze | I165: PB
A166: =A165+1 -> 160 | B166: Natalia | C166: Szurmiej | D166: K | E166: 160 | F166: 20 | G166: 1600 | H166: Bardzo dobrze | I166: PB
A167: =A166+1 -> 161 | B167: Paulina | C167: Wyłuda | D167: K | E167: 161 | F167: 19 | G167: 1600 | H167: Bardzo dobrze | I167: PB
A168: =A167+1 -> 162 | B168: Paweł | C168: Karmakskikh | D168: M | E168: 162 | F168: 18 | G168: 2800 | H168: Bardzo dobrze | I168: PB
A169: =A168+1 -> 163 | B169: Anna | C169: Jelska | D169: K | E169: 163 | F169: 10 | G169: 2250 | H169: Bardzo dobrze | I169: SP 9
A170: =A169+1 -> 164 | B170: Dariusz | C170: Jelski | D170: M | E170: 164 | F170: 50 | G170: 3300 | H170: Bardzo dobrze | I170: 3T
A171: =A170+1 -> 165 | B171: Adrian | C171: Rutkowski | D171: M | E171: 165 | F171: 29 | G171: 2500 | H171: Bardzo dobrze | I171: __
A172: =A171+1 -> 166 | B172: Przemysław | C172: Stefański | D172: M | E172: 166 | F172: 29 | G172: 3050 | H172: Bardzo dobrze | I172: __
A173: =A172+1 -> 167 | B173: Daniel | C173: Okrągły | D173: M | E173: 167 | F173: 36 | G173: 1500 | H173: Bardzo dobrze | I173: __
A174: =A173+1 -> 168 | B174: Bartosz | C174: Szolc | D174: M | E174: 168 | F174: 21 | G174: 1700 | H174: Bardzo dobrze | I174: PB
A175: =A174+1 -> 169 | B175: Waldemar | C175: Bednarczyk | D175: M | E175: 169 | F175: 38 | G175: 1900 | H175: Bardzo dobrze | I175: PB
A176: =A175+1 -> 170 | B176: Matylda | C176: Szczotka | D176: K | E176: 170 | F176: 14 | G176: 2700 | H176: Bardzo dobrze | I176: SP 29
A177: =A176+1 -> 171 | B177: Michał | C177: Gołaś | D177: M | E177: 171 | F177: 25 | G177: 1900 | H177: Bardzo dobrze | I177: PB
A178: =A177+1 -> 172 | B178: Krzysztof | C178: Bargłowski | D178: M | E178: 172 | F178: 38 | G178: 1960 | H178: Bardzo dobrze | I178: PB
A179: =A178+1 -> 173 | B179: Marcin | C179: Simek | D179: M | E179: 173 | F179: 20 | G179: 2450 | H179: Bardzo dobrze | I179: PB
A180: =A179+1 -> 174 | B180: Szymon | C180: Dąbrowski | D180: M | E180: 174 | F180: 12 | G180: 2450 | H180: Bardzo dobrze | I180: SP 11
A181: =A180+1 -> 175 | B181: Aleksandra | C181: Kopaciuk | D181: K | E181: 175 | F181: 26 | G181: 1450 | H181: Bardzo dobrze | I181: PB
A182: =A181+1 -> 176 | B182: Wojciech | C182: Dąbrowski | D182: M | E182: 176 | F182: 10 | G182: 2650 | H182: Bardzo dobrze | I182: SP 11
A183: =A182+1 -> 177 | B183: Joanna | C183: Dąbrowska | D183: K | E183: 177 | F183: 41 | G183: 2300 | H183: Bardzo dobrze | I183: __
A184: =A183+1 -> 178 | B184: Marek | C184: Hoffmann | D184: M | E184: 178 | F184: 51 | G184: 2750 | H184: Bardzo dobrze | I184: __
A185: =A184+1 -> 179 | B185: Kacper | C185: Zoleski | D185: M | E185: 179 | F185: 19 | G185: 3600 | H185: Bardzo dobrze | I185: PB
A186: =A185+1 -> 180 | B186: Michał | C186: Grochowski | D186: M | E186: 180 | F186: 18 | G186: 3250 | H186: Bardzo dobrze | I186: ZSE Białystok
A187: =A186+1 -> 181 | B187: Tomek | C187: Śmiejko | D187: M | E187: 181 | F187: 45 | G187: 2150 | H187: Bardzo dobrze | I187: PB
A188: =A187+1 -> 182 | B188: Jacek | C188: Stolarski | D188: M | E188: 182 | F188: 32 | G188: 2300 | H188: Bardzo dobrze | I188: __
A189: =A188+1 -> 183 | B189: Mateusz | C189: Waleniej | D189: M | E189: 183 | F189: 27 | G189: 1700 | H189: Bardzo dobrze | I189: PB
A190: =A189+1 -> 184 | B190: Mateusz | C190: Soboleszi | D190: M | E190: 184 | F190: 29 | G190: 1600 | H190: Bardzo dobrze | I190: PB
A191: =A190+1 -> 185 | B191: Paweł | C191: Niedzielko | D191: M | E191: 185 | F191: 29 | G191: 2500 | H191: Bardzo dobrze | I191: PB
A192: =A191+1 -> 186 | B192: Joanna | C192: Wołczuk | D192: K | E192: 186 | F192: 46 | G192: 1800 | H192: Bardzo dobrze | I192: SP 11
A193: =A192+1 -> 187 | B193: Paweł | C193: Jabłoński | D193: M | E193: 187 | F193: 6 | G193: 1800 | H193: Bardzo dobrze | I193: SP 6
A194: =A193+1 -> 188 | B194: Maja | C194: Krwowska | D194: K | E194: 188 | F194: 15 | G194: 2800 | H194: Bardzo dobrze | I194: KS Podlasie
A195: =A194+1 -> 189 | B195: Mateusz | C195: Wrzesiński | D195: M | E195: 189 | F195: 19 | G195: 2800 | H195: Bardzo dobrze | I195: PB
A196: =A195+1 -> 190 | B196: Beata | C196: Grarzyh | D196: K | E196: 190 | F196: 21 | G196: 1500 | H196: Bardzo dobrze | I196: PB
A197: =A196+1 -> 191 | B197: Zuzanna | C197: Butkiewicz | D197: K | E197: 191 | F197: 11 | G197: 1850 | H197: Bardzo dobrze | I197: SP 7
A198: =A197+1 -> 192 | B198: Anna | C198: Wójcik | D198: K | E198: 192 | F198: 39 | G198: 2500 | H198: Bardzo dobrze | I198: __
A199: =A198+1 -> 193 | B199: Paweł Jan | C199: Wójcik | D199: M | E199: 193 | F199: 39 | G199: 2450 | H199: Bardzo dobrze | I199: __
A200: =A199+1 -> 194 | B200: Adam | C200: Klimanowicz | D200: M | E200: 194 | F200: 25 | G200: 1650 | H200: Bardzo dobrze | I200: __
... 537 more rows

Sheet Arkusz2
